[Event "*** Titled Tuesday Blitz"]
[Site "Chess.com"]
[Date "2021.02.09"]
[Round "6"]
[White "canary2016"]
[Black "MerryPoppies"]
[Result "0-1"]
[WhiteElo "1984"]
[BlackElo "2170"]
[TimeControl "180+1"]
[EndTime "11:10:57 PST"]
[Termination "MerryPoppies won by checkmate"]

1. d4 {[%clk 0:03:00.9]} 1... d5 {[%clk 0:02:47.4]} 2. Bf4 {[%clk 0:02:59.6]}
2... Nf6 {[%clk 0:02:47]} 3. e3 {[%clk 0:02:59.1]} 3... e6 {[%clk 0:02:46.6]} 4.
Nf3 {[%clk 0:02:58.7]} 4... Bd6 {[%clk 0:02:46.8]} 5. Bg3 {[%clk 0:02:57.8]}
5... c6 {[%clk 0:02:43]} 6. c4 {[%clk 0:02:57.6]} 6... Bxg3 {[%clk 0:02:42.6]}
7. hxg3 {[%clk 0:02:57.2]} 7... Qb6 {[%clk 0:02:39.4]} 8. Qb3 {[%clk 0:02:55.6]}
8... Nbd7 {[%clk 0:02:37.9]} 9. Nc3 {[%clk 0:02:52.6]} 9... dxc4 {[%clk
0:02:35.5]} 10. Bxc4 {[%clk 0:02:52]} 10... h6 {[%clk 0:02:35]} 11. Rc1 {[%clk
0:02:38.8]} 11... Qxb3 {[%clk 0:02:34.8]} 12. Bxb3 {[%clk 0:02:38.5]} 12... a6
{[%clk 0:02:28.7]} 13. Na4 {[%clk 0:02:36.3]} 13... b5 {[%clk 0:02:26.2]} 14.
Nc5 {[%clk 0:02:35.6]} 14... Nxc5 {[%clk 0:02:24.5]} 15. Rxc5 {[%clk 0:02:35.2]}
15... Bb7 {[%clk 0:02:21.4]} 16. Ne5 {[%clk 0:02:34.1]} 16... Ne4 {[%clk
0:02:21.3]} 17. Rc2 {[%clk 0:02:31.9]} 17... Rc8 {[%clk 0:02:19.4]} 18. O-O
{[%clk 0:02:27.4]} 18... c5 {[%clk 0:02:04.7]} 19. dxc5 {[%clk 0:02:22.2]} 19...
Nxc5 {[%clk 0:02:04.5]} 20. Rfc1 {[%clk 0:02:18.7]} 20... Ke7 {[%clk 0:02:04.5]}
21. Rd2 {[%clk 0:02:06.2]} 21... Nxb3 {[%clk 0:01:42.3]} 22. Rxc8 {[%clk
0:02:05.2]} 22... Bxc8 {[%clk 0:01:39.9]} 23. axb3 {[%clk 0:02:02.4]} 23... Kf6
{[%clk 0:01:32.4]} 24. Nd7+ {[%clk 0:01:58]} 24... Bxd7 {[%clk 0:01:30.2]} 25.
Rxd7 {[%clk 0:01:57.6]} 25... Rc8 {[%clk 0:01:30.1]} 26. Rd6 {[%clk 0:01:55.2]}
26... Rc2 {[%clk 0:01:25.4]} 27. Rxa6 {[%clk 0:01:54.1]} 27... Rxb2 {[%clk
0:01:25.5]} 28. Rb6 {[%clk 0:01:34.4]} 28... Rxb3 {[%clk 0:01:25.3]} 29. Kf1
{[%clk 0:01:34.5]} 29... Rb2 {[%clk 0:01:24.6]} 30. g4 {[%clk 0:01:18]} 30... g6
{[%clk 0:01:10.8]} 31. Rb7 {[%clk 0:01:15.5]} 31... e5 {[%clk 0:01:06.4]} 32. g3
{[%clk 0:01:13.6]} 32... Ke6 {[%clk 0:01:04.4]} 33. Kg2 {[%clk 0:01:11.3]} 33...
b4 {[%clk 0:00:51.2]} 34. Rb6+ {[%clk 0:01:05.6]} 34... Kd5 {[%clk 0:00:50.3]}
35. Rf6 {[%clk 0:01:04.6]} 35... Rc2 {[%clk 0:00:41.6]} 36. Rxf7 {[%clk
0:01:03.2]} 36... b3 {[%clk 0:00:41.6]} 37. Rb7 {[%clk 0:01:01]} 37... Kc4
{[%clk 0:00:40.2]} 38. Rc7+ {[%clk 0:00:47.2]} 38... Kd3 {[%clk 0:00:39.6]} 39.
Rb7 {[%clk 0:00:41.3]} 39... b2 {[%clk 0:00:39.5]} 40. Kf3 {[%clk 0:00:19.9]}
40... e4+ {[%clk 0:00:39.4]} 41. Kf4 {[%clk 0:00:15.2]} 41... Rxf2+ {[%clk
0:00:39.3]} 42. Ke5 {[%clk 0:00:14.9]} 42... Kxe3 {[%clk 0:00:38.6]} 43. Rb3+
{[%clk 0:00:11.9]} 43... Ke2 {[%clk 0:00:32.2]} 44. Rxb2+ {[%clk 0:00:12]} 44...
Kf3 {[%clk 0:00:29.3]} 45. Rb3+ {[%clk 0:00:11.8]} 45... Kg2 {[%clk 0:00:27.7]}
46. Kxe4 {[%clk 0:00:10.9]} 46... Re2+ {[%clk 0:00:27.4]} 47. Kf4 {[%clk
0:00:09.5]} 47... Rf2+ {[%clk 0:00:27]} 48. Ke4 {[%clk 0:00:09.4]} 48... Kh3
{[%clk 0:00:23.7]} 49. Rb6 {[%clk 0:00:06.7]} 49... g5 {[%clk 0:00:17.9]} 50.
Rxh6+ {[%clk 0:00:06.5]} 50... Kxg4 {[%clk 0:00:18.1]} 51. Rg6 {[%clk
0:00:06.3]} 51... Ra2 {[%clk 0:00:16.9]} 52. Ke3 {[%clk 0:00:05.5]} 52... Rb2
{[%clk 0:00:14.5]} 53. Ke4 {[%clk 0:00:05.4]} 53... Rb3 {[%clk 0:00:13.7]} 54.
Ke5 {[%clk 0:00:03.5]} 54... Rxg3 {[%clk 0:00:13.6]} 55. Ke4 {[%clk 0:00:03.5]}
55... Rb3 {[%clk 0:00:13.2]} 56. Ke5 {[%clk 0:00:03.4]} 56... Rb5+ {[%clk
0:00:13.1]} 57. Ke4 {[%clk 0:00:03.6]} 57... Kg3 {[%clk 0:00:13]} 58. Ke3 {[%clk
0:00:03.9]} 58... g4 {[%clk 0:00:13.2]} 59. Ke2 {[%clk 0:00:03.8]} 59... Rb4
{[%clk 0:00:08.5]} 60. Rf6 {[%clk 0:00:03.6]} 60... Kg2 {[%clk 0:00:08.1]} 61.
Rf2+ {[%clk 0:00:03.6]} 61... Kg3 {[%clk 0:00:08.2]} 62. Rf6 {[%clk 0:00:03.4]}
62... Rb2+ {[%clk 0:00:08.2]} 63. Kf1 {[%clk 0:00:03.6]} 63... Rb1+ {[%clk
0:00:08.3]} 64. Ke2 {[%clk 0:00:03.9]} 64... Kh2 {[%clk 0:00:07.5]} 65. Rf2+
{[%clk 0:00:03.8]} 65... Kg1 {[%clk 0:00:06.3]} 66. Rf6 {[%clk 0:00:03]} 66...
g3 {[%clk 0:00:06.5]} 67. Rg6 {[%clk 0:00:03.3]} 67... Rb2+ {[%clk 0:00:05.9]}
68. Ke3 {[%clk 0:00:03.4]} 68... g2 {[%clk 0:00:06.1]} 69. Kf3 {[%clk
0:00:03.8]} 69... Rf2+ {[%clk 0:00:05.9]} 70. Ke3 {[%clk 0:00:02.9]} 70... Kf1
{[%clk 0:00:06]} 71. Rxg2 {[%clk 0:00:02.2]} 71... Rxg2 {[%clk 0:00:05.9]} 72.
Kf3 {[%clk 0:00:02.1]} 72... Rf2+ {[%clk 0:00:06.2]} 73. Ke3 {[%clk 0:00:02.3]}
73... Ke1 {[%clk 0:00:06.2]} 74. Kd3 {[%clk 0:00:02.3]} 74... Re2 {[%clk
0:00:06.7]} 75. Kd4 {[%clk 0:00:02.5]} 75... Kd2 {[%clk 0:00:07.1]} 76. Kd5
{[%clk 0:00:02.8]} 76... Re3 {[%clk 0:00:07.4]} 77. Kd4 {[%clk 0:00:03.7]} 77...
Rd3+ {[%clk 0:00:07.3]} 78. Kc4 {[%clk 0:00:04.2]} 78... Kc2 {[%clk 0:00:07.3]}
79. Kc5 {[%clk 0:00:04.1]} 79... Kc3 {[%clk 0:00:07.4]} 80. Kc6 {[%clk
0:00:04.1]} 80... Rd4 {[%clk 0:00:07.7]} 81. Kc5 {[%clk 0:00:04.2]} 81... Rc4+
{[%clk 0:00:07.9]} 82. Kd5 {[%clk 0:00:04.6]} 82... Kd3 {[%clk 0:00:08.1]} 83.
Ke5 {[%clk 0:00:04.9]} 83... Rd4 {[%clk 0:00:08.2]} 84. Ke6 {[%clk 0:00:04.9]}
84... Ke4 {[%clk 0:00:08.2]} 85. Kf6 {[%clk 0:00:04.7]} 85... Rd5 {[%clk
0:00:08.5]} 86. Ke6 {[%clk 0:00:04.9]} 86... Kd4 {[%clk 0:00:08.3]} 87. Kf6
{[%clk 0:00:04.5]} 87... Re5 {[%clk 0:00:08.7]} 88. Kg6 {[%clk 0:00:04.8]} 88...
Ke4 {[%clk 0:00:09]} 89. Kf6 {[%clk 0:00:04.8]} 89... Kf4 {[%clk 0:00:09.5]} 90.
Kg6 {[%clk 0:00:05.2]} 90... Rf5 {[%clk 0:00:09.8]} 91. Kg7 {[%clk 0:00:05]}
91... Kg5 {[%clk 0:00:10.1]} 92. Kh7 {[%clk 0:00:04.7]} 92... Rf6 {[%clk
0:00:10.1]} 93. Kg7 {[%clk 0:00:04.3]} 93... Kf5 {[%clk 0:00:08.6]} 94. Kh7
{[%clk 0:00:04.2]} 94... Rg6 {[%clk 0:00:08.8]} 95. Kh8 {[%clk 0:00:04.2]} 95...
Kf6 {[%clk 0:00:09.1]} 96. Kh7 {[%clk 0:00:04.7]} 96... Kf7 {[%clk 0:00:08.4]}
97. Kh8 {[%clk 0:00:04.1]} 97... Rh6# {[%clk 0:00:08.9]} 0-1

[Event "*** Titled Tuesday Blitz"]
[Site "Chess.com"]
[Date "2021.02.09"]
[Round "7"]
[White "Cambek64"]
[Black "Kaliopa"]
[Result "1-0"]
[WhiteElo "2350"]
[BlackElo "2190"]
[TimeControl "180+1"]
[EndTime "11:14:18 PST"]
[Termination "Cambek64 won by resignation"]

1. e4 {[%clk 0:02:54.5]} 1... c5 {[%clk 0:02:59]} 2. Nc3 {[%clk 0:02:53.8]} 2...
Nc6 {[%clk 0:02:59.1]} 3. d3 {[%clk 0:02:53.5]} 3... g6 {[%clk 0:02:56.3]} 4.
Be3 {[%clk 0:02:53.4]} 4... d6 {[%clk 0:02:55.3]} 5. d4 {[%clk 0:02:53.9]} 5...
cxd4 {[%clk 0:02:54.4]} 6. Bxd4 {[%clk 0:02:54.8]} 6... Nxd4 {[%clk 0:02:50.6]}
7. Qxd4 {[%clk 0:02:55.7]} 7... Nf6 {[%clk 0:02:37.5]} 8. e5 {[%clk 0:02:55.2]}
8... dxe5 {[%clk 0:02:33.3]} 9. Bb5+ {[%clk 0:02:55.2]} 9... Bd7 {[%clk
0:02:30.4]} 10. Qxe5 {[%clk 0:02:53.9]} 10... Bxb5 {[%clk 0:01:17.6]} 11. Nxb5
{[%clk 0:02:51]} 11... Rc8 {[%clk 0:01:16.1]} 12. Rd1 {[%clk 0:02:46.3]} 12...
Qa5+ {[%clk 0:01:15.1]} 13. c3 {[%clk 0:02:46.2]} 13... Qb6 {[%clk 0:01:11.1]}
14. Nd6+ {[%clk 0:02:42.6]} 14... Kd8 {[%clk 0:01:05.4]} 15. Nxf7+ {[%clk
0:02:36]} 1-0

[Event "*** Titled Tuesday Blitz"]
[Site "Chess.com"]
[Date "2021.02.09"]
[Round "7"]
[White "Dave_ChessMate"]
[Black "IljaJoke"]
[Result "0-1"]
[WhiteElo "2381"]
[BlackElo "2516"]
[TimeControl "180+1"]
[EndTime "11:14:47 PST"]
[Termination "IljaJoke won by resignation"]

1. e4 {[%clk 0:03:00.9]} 1... e5 {[%clk 0:02:59.9]} 2. Nf3 {[%clk 0:02:59.9]}
2... Nc6 {[%clk 0:03:00.1]} 3. Bc4 {[%clk 0:03:00.2]} 3... Bc5 {[%clk
0:02:59.6]} 4. b4 {[%clk 0:03:00.1]} 4... Bxb4 {[%clk 0:02:59.6]} 5. c3 {[%clk
0:03:00.1]} 5... Be7 {[%clk 0:03:00.3]} 6. d4 {[%clk 0:03:00.1]} 6... Na5 {[%clk
0:03:00.8]} 7. Nxe5 {[%clk 0:02:52.5]} 7... Nxc4 {[%clk 0:03:00.4]} 8. Nxc4
{[%clk 0:02:53.4]} 8... d5 {[%clk 0:03:01]} 9. exd5 {[%clk 0:02:53.1]} 9... Qxd5
{[%clk 0:03:01.9]} 10. Ne3 {[%clk 0:02:53.5]} 10... Qd8 {[%clk 0:03:02.3]} 11.
O-O {[%clk 0:02:52.9]} 11... Nf6 {[%clk 0:03:02.6]} 12. c4 {[%clk 0:02:53.1]}
12... O-O {[%clk 0:03:03]} 13. Bb2 {[%clk 0:02:53.6]} 13... c6 {[%clk
0:02:59.3]} 14. Nc3 {[%clk 0:02:51.2]} 14... Bd6 {[%clk 0:02:55.6]} 15. d5
{[%clk 0:02:47.8]} 15... cxd5 {[%clk 0:02:53.2]} 16. cxd5 {[%clk 0:02:44.8]}
16... a6 {[%clk 0:02:52.9]} 17. Qf3 {[%clk 0:02:42.6]} 17... Qc7 {[%clk
0:02:39.3]} 18. Rac1 {[%clk 0:02:36.1]} 18... Bxh2+ {[%clk 0:02:36.4]} 19. Kh1
{[%clk 0:02:32.7]} 19... Qf4 {[%clk 0:02:36.6]} 20. Qxf4 {[%clk 0:02:03.2]}
20... Bxf4 {[%clk 0:02:37.5]} 21. Nc4 {[%clk 0:02:03.1]} 21... Bxc1 {[%clk
0:02:34.9]} 22. Bxc1 {[%clk 0:02:02.8]} 22... Bf5 {[%clk 0:02:31.4]} 23. Rd1
{[%clk 0:01:57.1]} 23... Rac8 {[%clk 0:02:29.5]} 24. Nd6 {[%clk 0:01:56.3]}
24... Rxc3 {[%clk 0:02:26.8]} 25. Nxf5 {[%clk 0:01:56.7]} 25... Rd8 {[%clk
0:02:21.9]} 26. d6 {[%clk 0:01:51.8]} 26... Ne4 {[%clk 0:02:10.9]} 27. Be3
{[%clk 0:01:45.5]} 27... Rxe3 {[%clk 0:02:07.6]} 0-1

[Event "*** Titled Tuesday Blitz"]
[Site "Chess.com"]
[Date "2021.02.09"]
[Round "7"]
[White "jaramsdal"]
[Black "mamonika"]
[Result "1-0"]
[WhiteElo "2302"]
[BlackElo "2038"]
[TimeControl "180+1"]
[EndTime "11:14:55 PST"]
[Termination "jaramsdal won by resignation"]

1. e4 {[%clk 0:03:00.9]} 1... c5 {[%clk 0:02:56.8]} 2. a3 {[%clk 0:02:59.4]}
2... Nc6 {[%clk 0:02:48.7]} 3. b4 {[%clk 0:02:58.3]} 3... cxb4 {[%clk
0:02:48.2]} 4. axb4 {[%clk 0:02:59.2]} 4... Nxb4 {[%clk 0:02:48.4]} 5. c3 {[%clk
0:02:58.8]} 5... Nc6 {[%clk 0:02:45.6]} 6. d4 {[%clk 0:02:59.3]} 6... d5 {[%clk
0:02:45.3]} 7. exd5 {[%clk 0:03:00.2]} 7... Qxd5 {[%clk 0:02:44.2]} 8. Na3
{[%clk 0:03:00.8]} 8... e5 {[%clk 0:02:24.2]} 9. Nb5 {[%clk 0:02:52.3]} 9... Qd8
{[%clk 0:02:12]} 10. d5 {[%clk 0:02:48.7]} 10... Nce7 {[%clk 0:01:34.8]} 11. d6
{[%clk 0:02:47.5]} 11... Nc6 {[%clk 0:01:22.8]} 12. Nc7+ {[%clk 0:02:37]} 12...
Kd7 {[%clk 0:01:19.2]} 13. Nxa8 {[%clk 0:02:21.3]} 13... Bxd6 {[%clk 0:01:17.4]}
14. Qg4+ {[%clk 0:02:12.4]} 14... Ke7 {[%clk 0:01:09.1]} 15. Qxg7 {[%clk
0:02:08.7]} 15... Nf6 {[%clk 0:01:09]} 16. Bg5 {[%clk 0:02:08]} 1-0

[Event "*** Titled Tuesday Blitz"]
[Site "Chess.com"]
[Date "2021.02.09"]
[Round "7"]
[White "kai_nov"]
[Black "juli2512"]
[Result "1-0"]
[WhiteElo "2369"]
[BlackElo "2176"]
[TimeControl "180+1"]
[EndTime "11:15:08 PST"]
[Termination "kai_nov won by resignation"]

1. d4 {[%clk 0:03:00.9]} 1... f5 {[%clk 0:02:59.2]} 2. g3 {[%clk 0:03:00.6]}
2... Nf6 {[%clk 0:02:59.5]} 3. Bg2 {[%clk 0:03:00.2]} 3... g6 {[%clk 0:02:59.9]}
4. c3 {[%clk 0:02:47.5]} 4... Bg7 {[%clk 0:02:59.5]} 5. Qb3 {[%clk 0:02:46.2]}
5... c6 {[%clk 0:02:56.8]} 6. Nd2 {[%clk 0:02:43.4]} 6... d6 {[%clk 0:02:57]} 7.
Ngf3 {[%clk 0:02:33.6]} 7... Qb6 {[%clk 0:02:56.5]} 8. Nc4 {[%clk 0:02:29.7]}
8... Qxb3 {[%clk 0:02:55.9]} 9. axb3 {[%clk 0:02:29.4]} 9... Nbd7 {[%clk
0:02:53.5]} 10. Ng5 {[%clk 0:02:25.9]} 10... Nf8 {[%clk 0:02:53.1]} 11. Nb6
{[%clk 0:02:20.7]} 11... Rb8 {[%clk 0:02:51.6]} 12. Nxc8 {[%clk 0:02:20.8]}
12... Rxc8 {[%clk 0:02:51.6]} 13. Rxa7 {[%clk 0:02:20.8]} 13... Rb8 {[%clk
0:02:50.4]} 14. O-O {[%clk 0:02:01.8]} 14... h6 {[%clk 0:02:49.8]} 15. Nf3
{[%clk 0:02:01.2]} 15... Kf7 {[%clk 0:02:43.9]} 16. Nd2 {[%clk 0:01:59.9]} 16...
N8d7 {[%clk 0:02:40.9]} 17. e4 {[%clk 0:01:55.1]} 17... fxe4 {[%clk 0:02:37.9]}
18. Nxe4 {[%clk 0:01:54.9]} 18... Nxe4 {[%clk 0:02:37.9]} 19. Bxe4 {[%clk
0:01:54.5]} 19... Nf6 {[%clk 0:02:37.3]} 20. Bd3 {[%clk 0:01:49.9]} 20... e5
{[%clk 0:02:24.6]} 21. dxe5 {[%clk 0:01:49.2]} 21... dxe5 {[%clk 0:02:24.5]} 22.
Re1 {[%clk 0:01:45.6]} 22... Rhe8 {[%clk 0:02:22.8]} 23. Be3 {[%clk 0:01:35.6]}
23... Re7 {[%clk 0:02:20.2]} 24. Bc5 {[%clk 0:01:33.1]} 24... Rd7 {[%clk
0:02:15.6]} 25. Bc4+ {[%clk 0:01:30.7]} 25... Ke8 {[%clk 0:02:11.6]} 26. Rxe5+
{[%clk 0:01:28.9]} 26... Kd8 {[%clk 0:02:11.6]} 27. Bb6+ {[%clk 0:01:27.5]}
27... Kc8 {[%clk 0:02:10.9]} 28. Be6 {[%clk 0:01:21.8]} 1-0

[Event "*** Titled Tuesday Blitz"]
[Site "Chess.com"]
[Date "2021.02.09"]
[Round "7"]
[White "dosto07"]
[Black "starplatinum2030"]
[Result "1-0"]
[WhiteElo "2387"]
[BlackElo "2109"]
[TimeControl "180+1"]
[EndTime "11:15:10 PST"]
[Termination "dosto07 won by resignation"]

1. e4 {[%clk 0:03:00.9]} 1... c5 {[%clk 0:02:58.9]} 2. Nf3 {[%clk 0:02:59.9]}
2... e6 {[%clk 0:02:57.9]} 3. c3 {[%clk 0:02:57.2]} 3... Nc6 {[%clk 0:02:55.6]}
4. d4 {[%clk 0:02:55.9]} 4... cxd4 {[%clk 0:02:55.6]} 5. cxd4 {[%clk 0:02:55.7]}
5... Nf6 {[%clk 0:02:55.8]} 6. Nc3 {[%clk 0:02:53.8]} 6... d5 {[%clk 0:02:48.4]}
7. e5 {[%clk 0:02:51.2]} 7... Ne4 {[%clk 0:02:48.3]} 8. Bd3 {[%clk 0:02:47.9]}
8... Nxc3 {[%clk 0:02:47.3]} 9. bxc3 {[%clk 0:02:46.6]} 9... Be7 {[%clk
0:02:47.7]} 10. O-O {[%clk 0:02:46.2]} 10... O-O {[%clk 0:02:47.5]} 11. Re1
{[%clk 0:02:43.7]} 11... Bd7 {[%clk 0:02:42.6]} 12. h4 {[%clk 0:02:41.4]} 12...
Rc8 {[%clk 0:02:36.5]} 13. Ng5 {[%clk 0:02:34.5]} 13... g6 {[%clk 0:02:25.4]}
14. Nxh7 {[%clk 0:02:28.7]} 14... Bxh4 {[%clk 0:02:17.8]} 15. Nxf8 {[%clk
0:02:23.8]} 15... Kxf8 {[%clk 0:02:04.6]} 16. Qd2 {[%clk 0:02:14]} 16... Na5
{[%clk 0:01:45.9]} 17. Qh6+ {[%clk 0:02:09.4]} 17... Kg8 {[%clk 0:01:43.9]} 18.
g3 {[%clk 0:01:46.2]} 18... Be7 {[%clk 0:01:38.3]} 19. Bxg6 {[%clk 0:01:39.7]}
19... fxg6 {[%clk 0:01:35.9]} 20. Qxg6+ {[%clk 0:01:39.5]} 20... Kh8 {[%clk
0:01:35.2]} 21. Kg2 {[%clk 0:01:34.9]} 1-0

[Event "*** Titled Tuesday Blitz"]
[Site "Chess.com"]
[Date "2021.02.09"]
[Round "7"]
[White "sopo-tereladze"]
[Black "szachuspl"]
[Result "1-0"]
[WhiteElo "2294"]
[BlackElo "2498"]
[TimeControl "180+1"]
[EndTime "11:15:21 PST"]
[Termination "sopo-tereladze won by resignation"]

1. d4 {[%clk 0:01:59.6]} 1... Nf6 {[%clk 0:02:55.2]} 2. Nf3 {[%clk 0:02:00.5]}
2... g6 {[%clk 0:02:55]} 3. Bf4 {[%clk 0:02:01.4]} 3... Bg7 {[%clk 0:02:55.1]}
4. e3 {[%clk 0:02:02.3]} 4... O-O {[%clk 0:02:54.9]} 5. Be2 {[%clk 0:02:03.2]}
5... d6 {[%clk 0:02:55.3]} 6. O-O {[%clk 0:02:04.1]} 6... c5 {[%clk 0:02:55.7]}
7. c3 {[%clk 0:02:05]} 7... Nc6 {[%clk 0:02:55.9]} 8. h3 {[%clk 0:02:05.9]} 8...
cxd4 {[%clk 0:02:56.3]} 9. exd4 {[%clk 0:02:06]} 9... Nd5 {[%clk 0:02:56.8]} 10.
Bg3 {[%clk 0:02:04.9]} 10... e5 {[%clk 0:02:57.3]} 11. dxe5 {[%clk 0:02:03.1]}
11... dxe5 {[%clk 0:02:57.6]} 12. Nbd2 {[%clk 0:02:03.2]} 12... h6 {[%clk
0:02:52.6]} 13. Re1 {[%clk 0:02:02]} 13... f5 {[%clk 0:02:51.3]} 14. Bc4 {[%clk
0:02:01]} 14... e4 {[%clk 0:02:48]} 15. Nxe4 {[%clk 0:01:57.2]} 15... fxe4
{[%clk 0:02:43.7]} 16. Bxd5+ {[%clk 0:01:57]} 16... Kh7 {[%clk 0:02:43.6]} 17.
Bxe4 {[%clk 0:01:53.8]} 17... Qf6 {[%clk 0:02:40.8]} 18. Qc2 {[%clk 0:01:48.4]}
18... Ne7 {[%clk 0:02:38.5]} 19. Bh4 {[%clk 0:01:45.9]} 19... Qe6 {[%clk
0:01:57.8]} 20. Bxe7 {[%clk 0:01:44.3]} 20... Rxf3 {[%clk 0:01:57.7]} 21. Bxf3
{[%clk 0:01:40.6]} 21... Qb6 {[%clk 0:01:56.2]} 22. Rad1 {[%clk 0:01:30.8]}
22... Bf5 {[%clk 0:01:54]} 23. Be4 {[%clk 0:01:30.2]} 23... Bxe4 {[%clk
0:01:53.5]} 24. Qxe4 {[%clk 0:01:31.1]} 24... Qxb2 {[%clk 0:01:52.9]} 25. Bb4
{[%clk 0:01:22.4]} 25... Rc8 {[%clk 0:01:46.4]} 26. Rd7 {[%clk 0:01:20.8]} 1-0

[Event "*** Titled Tuesday Blitz"]
[Site "Chess.com"]
[Date "2021.02.09"]
[Round "7"]
[White "orrbaverlekszarnyon"]
[Black "mr65"]
[Result "1-0"]
[WhiteElo "2294"]
[BlackElo "2099"]
[TimeControl "180+1"]
[EndTime "11:15:25 PST"]
[Termination "orrbaverlekszarnyon won on time"]

1. d4 {[%clk 0:03:00.9]} 1... Nf6 {[%clk 0:00:35]} 2. Nc3 {[%clk 0:02:59]} 2...
d5 {[%clk 0:00:33.1]} 3. Bf4 {[%clk 0:02:58.5]} 3... g6 {[%clk 0:00:32.2]} 4. e3
{[%clk 0:02:56.1]} 4... Bg7 {[%clk 0:00:31.8]} 5. Nf3 {[%clk 0:02:54.5]} 5...
O-O {[%clk 0:00:31.2]} 6. Be2 {[%clk 0:02:51.2]} 6... c5 {[%clk 0:00:27.8]} 7.
h4 {[%clk 0:02:48.6]} 7... h5 {[%clk 0:00:25.8]} 8. Ne5 {[%clk 0:02:46.2]} 8...
Nc6 {[%clk 0:00:22.6]} 9. Qd2 {[%clk 0:02:36.9]} 9... cxd4 {[%clk 0:00:04.3]}
10. exd4 {[%clk 0:02:35.6]} 10... Nd7 {[%clk 0:00:01.6]} 11. Nxc6 {[%clk
0:02:19.6]} 1-0

[Event "*** Titled Tuesday Blitz"]
[Site "Chess.com"]
[Date "2021.02.09"]
[Round "7"]
[White "The_filthy"]
[Black "dennisodessa"]
[Result "1-0"]
[WhiteElo "2300"]
[BlackElo "2456"]
[TimeControl "180+1"]
[EndTime "11:15:30 PST"]
[Termination "The_filthy won by resignation"]

1. e4 {[%clk 0:03:00.9]} 1... e6 {[%clk 0:03:00]} 2. d4 {[%clk 0:03:00.8]} 2...
d5 {[%clk 0:02:59.5]} 3. Nc3 {[%clk 0:03:00.8]} 3... Nc6 {[%clk 0:02:59.1]} 4.
e5 {[%clk 0:02:53.9]} 4... f6 {[%clk 0:02:58]} 5. Nf3 {[%clk 0:02:51.8]} 5...
fxe5 {[%clk 0:02:57.7]} 6. Nxe5 {[%clk 0:02:50.1]} 6... Nxe5 {[%clk 0:02:56.2]}
7. dxe5 {[%clk 0:02:50.4]} 7... Qh4 {[%clk 0:02:47.7]} 8. Bd3 {[%clk 0:02:42]}
8... Nh6 {[%clk 0:02:43.7]} 9. g3 {[%clk 0:02:30.6]} 9... Qh3 {[%clk 0:02:43.4]}
10. Bf1 {[%clk 0:02:28.3]} 10... Qf5 {[%clk 0:02:40.7]} 11. Bxh6 {[%clk
0:02:28.4]} 11... gxh6 {[%clk 0:02:39.3]} 12. Be2 {[%clk 0:02:10.7]} 12... Bd7
{[%clk 0:02:25.3]} 13. Bh5+ {[%clk 0:02:02.9]} 13... Kd8 {[%clk 0:02:25.5]} 14.
O-O {[%clk 0:01:59.3]} 14... c5 {[%clk 0:02:23.6]} 15. Re1 {[%clk 0:01:47.7]}
15... Kc7 {[%clk 0:02:23.6]} 16. Bg4 {[%clk 0:01:42.2]} 16... Qg6 {[%clk
0:02:15.9]} 17. Nxd5+ {[%clk 0:01:30]} 17... exd5 {[%clk 0:02:14.5]} 18. Bxd7
{[%clk 0:01:30.1]} 18... Kxd7 {[%clk 0:02:14.2]} 19. Qxd5+ {[%clk 0:01:30.6]}
19... Kc7 {[%clk 0:02:14.8]} 20. Rad1 {[%clk 0:01:24.2]} 20... Rc8 {[%clk
0:02:08]} 21. e6 {[%clk 0:01:16.8]} 21... Kb8 {[%clk 0:02:05]} 22. Qe5+ {[%clk
0:01:15.5]} 22... Bd6 {[%clk 0:01:59.2]} 23. Rxd6 {[%clk 0:01:10.2]} 23... Ka8
{[%clk 0:02:00.1]} 24. e7 {[%clk 0:01:06.8]} 24... Rhe8 {[%clk 0:01:55.3]} 25.
Rxg6 {[%clk 0:01:01.2]} 1-0

[Event "*** Titled Tuesday Blitz"]
[Site "Chess.com"]
[Date "2021.02.09"]
[Round "7"]
[White "ChessQueen"]
[Black "C_K_G"]
[Result "1-0"]
[WhiteElo "2784"]
[BlackElo "2114"]
[TimeControl "180+1"]
[EndTime "11:15:41 PST"]
[Termination "ChessQueen won by resignation"]

1. e4 {[%clk 0:03:00.9]} 1... c5 {[%clk 0:02:58.9]} 2. c3 {[%clk 0:03:00.4]}
2... d5 {[%clk 0:02:57.3]} 3. exd5 {[%clk 0:03:00.4]} 3... Qxd5 {[%clk
0:02:57.7]} 4. d4 {[%clk 0:03:01]} 4... cxd4 {[%clk 0:02:57.8]} 5. cxd4 {[%clk
0:03:00.9]} 5... Nc6 {[%clk 0:02:57.6]} 6. Nf3 {[%clk 0:02:56.1]} 6... Bg4
{[%clk 0:02:56.6]} 7. Be2 {[%clk 0:02:56.3]} 7... O-O-O {[%clk 0:02:52.3]} 8.
Nc3 {[%clk 0:02:53.8]} 8... Qa5 {[%clk 0:02:40]} 9. Be3 {[%clk 0:02:45.8]} 9...
e5 {[%clk 0:02:16.7]} 10. d5 {[%clk 0:02:30.7]} 10... Nf6 {[%clk 0:02:06.6]} 11.
O-O {[%clk 0:02:28]} 11... Nxd5 {[%clk 0:02:02]} 12. Nxd5 {[%clk 0:02:27.5]}
12... Qxd5 {[%clk 0:01:57]} 13. Qa4 {[%clk 0:02:23.9]} 13... e4 {[%clk
0:01:49.8]} 14. Rfd1 {[%clk 0:02:18]} 14... Qf5 {[%clk 0:01:05.1]} 15. Rxd8+
{[%clk 0:02:12.1]} 15... Kxd8 {[%clk 0:01:02.3]} 16. Nd4 {[%clk 0:02:09.8]}
16... Nxd4 {[%clk 0:00:47.9]} 17. Qxd4+ {[%clk 0:02:08.9]} 17... Kc8 {[%clk
0:00:32.9]} 18. Rc1+ {[%clk 0:02:05.3]} 1-0

[Event "*** Titled Tuesday Blitz"]
[Site "Chess.com"]
[Date "2021.02.09"]
[Round "7"]
[White "Kovalchuk94"]
[Black "Alohamora11"]
[Result "1-0"]
[WhiteElo "2642"]
[BlackElo "2477"]
[TimeControl "180+1"]
[EndTime "11:15:44 PST"]
[Termination "Kovalchuk94 won by resignation"]

1. e4 {[%clk 0:03:00.9]} 1... c5 {[%clk 0:02:58.3]} 2. Nf3 {[%clk 0:03:01]} 2...
g6 {[%clk 0:02:58.8]} 3. c3 {[%clk 0:02:59.9]} 3... Bg7 {[%clk 0:02:58.5]} 4. d4
{[%clk 0:02:59.8]} 4... cxd4 {[%clk 0:02:59.4]} 5. cxd4 {[%clk 0:03:00.7]} 5...
d5 {[%clk 0:03:00]} 6. Bb5+ {[%clk 0:03:00.8]} 6... Bd7 {[%clk 0:02:57.5]} 7.
Bxd7+ {[%clk 0:02:54.1]} 7... Nxd7 {[%clk 0:02:49.5]} 8. e5 {[%clk 0:02:51.3]}
8... Nh6 {[%clk 0:02:46.2]} 9. Bf4 {[%clk 0:02:44.4]} 9... Qb6 {[%clk
0:02:33.6]} 10. Qd2 {[%clk 0:02:37.5]} 10... Ng8 {[%clk 0:02:04.1]} 11. Nc3
{[%clk 0:02:36.8]} 11... e6 {[%clk 0:02:03.9]} 12. O-O {[%clk 0:02:26.1]} 12...
Ne7 {[%clk 0:02:03.7]} 13. Rac1 {[%clk 0:02:12.5]} 13... O-O {[%clk 0:02:03.1]}
14. Na4 {[%clk 0:02:12.9]} 14... Qa6 {[%clk 0:01:53.7]} 15. b3 {[%clk
0:02:12.6]} 15... Rfc8 {[%clk 0:01:51.3]} 16. Bg5 {[%clk 0:02:07.8]} 16... Nc6
{[%clk 0:01:45.4]} 17. h4 {[%clk 0:02:00.4]} 17... Qa5 {[%clk 0:01:43.8]} 18.
Qf4 {[%clk 0:01:55]} 18... Nb4 {[%clk 0:01:31.3]} 19. Qd2 {[%clk 0:01:49.7]}
19... Qb5 {[%clk 0:01:07.8]} 20. h5 {[%clk 0:01:45.1]} 20... gxh5 {[%clk
0:00:58.4]} 21. Bh6 {[%clk 0:01:44.4]} 21... a5 {[%clk 0:00:50.5]} 22. Qg5
{[%clk 0:01:41.2]} 1-0